[Event "22nd Hoogeveen Open 2018"]
[Site "Hoogeveen"]
[Date "2018.10.25"]
[Round "7"]
[White "Mellema, Andries"]
[Black "Winkels, Marcel"]
[Result "0-1"]
[ECO "B90"]
[WhiteElo "2140"]
[BlackElo "1935"]
[Annotator "NA"]
[PlyCount "116"]
[EventDate "2018.10.20"]
[EventType "swiss"]
[EventCountry "NED"]
[SourceTitle "playchess.com"]
[Source "ChessBase"]
[SourceQuality "1"]
[TimeControl "40/5400+30:1800+30"]

1. e4 {[%emt 0:04:28]} c5 {[%emt 0:00:00]} 2. Nf3 {[%emt 0:00:35]} d6 {[%emt 0:00:00]} 3. d4 {[%emt 0:00:53]} cxd4 {[%emt 0:00:00]} 4. Nxd4 {[%emt 0:00:06]} Nf6 {[%emt 0:00:05]} 5. Nc3 {[%emt 0:00:03]} a6 {[%emt 0:00:10]} 6. h3 {[%emt 0:00:03]} e5 {[%emt 0:00:18]} 7. Nde2 {[%emt 0:00:17]} h5 {[%emt 0:00:06] B90: Sicilian Najdorf: Unusual White 6th moves, 6 Be3 Ng4 and 6 Be3 e5} (7... b5 8. Ng3 Nbd7 9. Bg5 h6 10. Be3 Bb7 11. Bd3 h5 12. Bg5 g6 13. O-O Be7 14. a3 h4 15. Nge2 Nc5 16. Bxf6 Bxf6 {1-0 (48) Dominguez Perez,L (2739)-Vachier Lagrave,M (2779) chess.com INT 2018}) 8. Bg5 {[%emt 0:00:03]} Be6 {[%emt 0:00:11]} 9. Bxf6 {[%emt 0:00:06]} Qxf6 {[%emt 0:00:03]} 10. Nd5 {[%emt 0:00:07]} Qd8 {[%emt 0:00:05]} 11. Qd3 {[%emt 0:01:36]} Nd7 {[%emt 0:00:35] LiveBook: 34 Games} 12. Nec3 {[%emt 0:03:43]} g6 {[%emt 0:00:37]} 13. O-O-O {[%emt 0:01:45]} Nc5 {[%emt 0:00:58]} 14. Qe2 {[%emt 0:08:33] [#]} Bg7 $146 {[%emt 0:01:08]} ({Predecessor:} 14... Bh6+ 15. Kb1 {1-0 (40) Sengupta,D (2575)-Fier,A (2590) Hastings 2017}) 15. g3 {[%emt 0:01:47]} b5 {[%emt 0:01:02]} 16. a3 {[%emt 0:03:50]} Rb8 {[%emt 0:01:36]} 17. Kb1 {[%emt 0:10:17]} O-O {[%emt 0:05:14]} 18. g4 {[%emt 0:17:09]} ({White must play} 18. Qe3 $1 $14) 18... h4 {[%emt 0:00:17]} 19. Bg2 {[%emt 0:00:43]} Bd7 {[%emt 0:07:37]} 20. Qd2 {[%emt 0:02:25]} a5 {[%emt 0:05:23]} 21. Na2 {[%emt 0:09:26]} Bc6 {[%emt 0:08:02]} 22. f3 {[%emt 0:05:42]} Bxd5 {[%emt 0:06:17]} 23. Qxd5 {[%emt 0:01:08]} Rb6 {[%emt 0:01:00]} 24. Qd2 {[%emt 0:09:27]} Qa8 {[%emt 0:08:15]} 25. Nc3 {[%emt 0:03:14]} b4 {[%emt 0:06:40]} 26. Nd5 $1 {[%emt 0:01:16]} Rb7 {[%emt 0:00:13]} 27. Ka1 {[%emt 0:02:24]} Rfb8 {[%emt 0:05:14]} 28. Rb1 {[%emt 0:01:34]} Qa7 {[%emt 0:10:52]} 29. g5 {[%emt 0:01:39]} bxa3 {[%emt 0:12:39]} 30. b3 {[%emt 0:05:50]} Ne6 {[%emt 0:03:03]} 31. Ka2 {[%emt 0:01:01]} Qd4 {[%emt 0:03:10]} 32. Qxd4 {[%emt 0:00:49]} exd4 {[%emt 0:01:32]} 33. f4 {[%emt 0:00:54]} d3 {[%emt 0:00:44]} 34. cxd3 {[%emt 0:01:11]} Bb2 {[%emt 0:00:49]} 35. e5 {[%emt 0:00:22]} Rxb3 {[%emt 0:03:28]} 36. Nf6+ {[%emt 0:02:53]} (36. exd6 $17 {was called for.} Kg7 37. Be4) 36... Kh8 {[%emt 0:00:39]} (36... Kg7 $19 {has better winning chances.} 37. Bd5 Rxd3 38. Bxe6 fxe6) 37. Bd5 {[%emt 0:00:27]} Rxd3 {[%emt 0:00:54]} (37... R3b4 $17 38. Bxe6 fxe6 39. exd6 Bxf6 40. Rxb4 (40. gxf6 Kg8 $17) 40... axb4 41. gxf6 Kg8) 38. Bxe6 {[%emt 0:00:28]} fxe6 {[%emt 0:00:28] [#]} 39. Rhd1 $2 {[%emt 0:00:41] [#]} (39. Rhc1 $1 $11 {[%mdl 512]} Rd2 (39... Bxc1 40. Rxb8+) 40. Rc7 Bd4+ 41. Kxa3 Bc5+ 42. Rxc5 Rd3+ 43. Ka2 Rd2+ 44. Ka3 Rd3+ 45. Ka2 Rd2+ 46. Ka3) 39... Rxd1 $1 {[%emt 0:01:33]} 40. Rxd1 {[%emt 0:00:00]} d5 {[%emt 0:00:25]} 41. Rg1 {[%emt 0:30:17]} Kg7 {[%emt 0:34:07]} 42. Rg4 {[%emt 0:00:51]} a4 $2 {[%emt 0:02:17]} (42... Rh8 $19 43. Kb1 Bd4) 43. Nd7 $2 {[%emt 0:00:00]} (43. Rxh4 $11 Rh8 44. Rxh8 Kxh8 45. Nd7) 43... Rd8 {[%emt 0:00:00]} 44. Nc5 {[%emt 0:00:00]} Rc8 {[%emt 0:00:00]} 45. Nxa4 {[%emt 0:00:00]} Bc1 {[%emt 0:00:00]} 46. Rxh4 {[%emt 0:00:00]} d4 {[%emt 0:00:00]} 47. f5 {[%emt 0:00:00]} Rc2+ {[%emt 0:00:00]} 48. Kb1 {[%emt 0:00:00]} a2+ {[%emt 0:00:00]} 49. Ka1 $19 {[%emt 0:00:00]} gxf5 {[%emt 0:01:03]} 50. Rxd4 {[%emt 0:00:00]} Bxg5 {[%emt 0:00:13]} 51. Nb2 {[%emt 0:00:00]} Bc1 {[%emt 0:00:29]} 52. Nd1 {[%emt 0:00:00]} f4 {[%emt 0:01:43]} 53. Ra4 {[%emt 0:00:00]} Be3 {[%emt 0:01:57]} 54. Nb2 {[%emt 0:02:34]} f3 {[%emt 0:00:51]} 55. Nd3 {[%emt 0:00:13]} f2 {[%emt 0:00:30]} 56. Nxf2 {[%emt 0:00:05]} Bxf2 {[%emt 0:00:25]} 57. Rg4+ {[%emt 0:02:48]} Kf7 {[%emt 0:00:19]} 58. Re4 {[%emt 0:00:10]} Rd2 {[%emt 0:00:12]} 0-1

[Event "22nd Hoogeveen Open 2018"]
[Site "Hoogeveen"]
[Date "2018.10.25"]
[Round "7"]
[White "Thrish Karthik"]
[Black "Hamblok, Roel"]
[Result "0-1"]
[ECO "B13"]
[WhiteElo "2116"]
[BlackElo "2275"]
[Annotator "NA"]
[PlyCount "124"]
[EventDate "2018.10.20"]
[EventType "swiss"]
[EventCountry "NED"]
[SourceTitle "playchess.com"]
[Source "ChessBase"]
[SourceQuality "1"]
[TimeControl "40/5400+30:1800+30"]

{[%evp 13,113,3,16,13,16,14,13,15,14,12,19,14,27,-24,0,-21,-9,32767,32767,32767,32767,32767,-2,32767,32767,4,16,10,9,32767,0,8,0,-16,-13,-15,-20,32767,32767,-27,-14,32767,32767,-25,32767,-45,32767,-88,32767,32767,32767,32767,32767,32767,32767,32767,32767,32767,32767,32767,32767,32767,32767,32767,32767,32767,-18,-11,-21,32767,-8,-14,-14,32767,-8,-8,0,-8,32767,32767,-122,0,-110,-94,-110,-95,-114,-115,-117,-517,-110,32767,32767,-117,-112,-95,32767,32767,32767,32767,-29978,-12848]} 1. d4 {[%emt 0:00:00]} Nf6 {[%emt 0:00:08]} 2. Bf4 {[%emt 0:00:00]} d5 {[%emt 0:00:27]} 3. e3 {[%emt 0:00:00]} c5 {[%emt 0:00:26]} 4. Nc3 {[%emt 0:00:00]} cxd4 {[%emt 0:00:09]} 5. exd4 {[%emt 0:00:00]} a6 {[%emt 0:00:04] B13: Caro-Kann: Exchange Variation and Panov-Botvinnik Attack} 6. Nf3 {[%emt 0:02:15]} Nc6 {[%emt 0:00:21]} 7. Ne5 {[%emt 0:06:54]} e6 {[%emt 0:09:57]} 8. Nxc6 {[%emt 0:18:14]} bxc6 {[%emt 0:00:00]} 9. Na4 {[%emt 0:05:08]} Bd6 {[%emt 0:00:00]} 10. Bxd6 {[%emt 0:06:22] LiveBook: 6 Partien} Qxd6 {[%emt 0:00:45]} 11. Bd3 {[%emt 0:05:11]} O-O {[%emt 0:02:19]} 12. O-O {[%emt 0:00:49]} Rb8 $146 {[%emt 0:03:09]} ({Predecessor:} 12... e5 13. dxe5 Qxe5 {½-½ (32) Alekseenko,K (2639)-Sychev,K (2534) Sochi 2018}) 13. f4 {[%emt 0:08:20]} Nd7 {[%emt 0:05:06]} 14. b3 {[%emt 0:05:12]} c5 {[%emt 0:07:42]} 15. Nxc5 {[%emt 0:01:11]} Nxc5 {[%emt 0:00:05]} 16. dxc5 {[%emt 0:00:03]} Qxc5+ {[%emt 0:00:07]} 17. Kh1 {[%emt 0:00:04]} g6 {[%emt 0:00:42]} 18. Qe2 {[%emt 0:06:03]} d4 {[%emt 0:09:15]} 19. Qe5 {[%emt 0:06:10]} Qb6 {[%emt 0:08:54]} 20. Rae1 {[%emt 0:06:45]} Bb7 {[%emt 0:04:33]} 21. Qf6 {[%emt 0:05:54]} Qd8 {[%emt 0:07:38]} 22. Qxd8 {[%emt 0:01:45]} Rfxd8 {[%emt 0:00:29]} 23. Re5 {[%emt 0:00:58]} Bd5 {[%emt 0:08:02]} 24. Kg1 {[%emt 0:07:05]} a5 {[%emt 0:01:54]} 25. a4 {[%emt 0:00:59]} Rbc8 {[%emt 0:01:12]} 26. Rd1 {[%emt 0:02:36]} Rc7 {[%emt 0:03:34]} 27. Kf2 {[%emt 0:01:17]} Kg7 {[%emt 0:03:21]} 28. Rd2 {[%emt 0:02:50]} h6 {[%emt 0:03:05]} 29. Re1 {[%emt 0:01:01]} Rdc8 {[%emt 0:04:06]} 30. Be4 {[%emt 0:00:52]} (30. b4 $11) 30... Bxe4 {[%emt 0:00:50]} 31. Rxe4 {[%emt 0:00:01]} Rxc2 {[%emt 0:00:07]} 32. Rexd4 {[%emt 0:00:03]} R8c3 {[%emt 0:00:15]} 33. Rxc2 {[%emt 0:01:45]} Rxc2+ {[%emt 0:00:05]} 34. Kg1 {[%emt 0:00:35]} Rc3 {[%emt 0:00:39]} 35. b4 {[%emt 0:00:10]} axb4 {[%emt 0:00:31]} 36. Rxb4 {[%emt 0:00:08]} Rc2 {[%emt 0:03:59]} 37. h3 {[%emt 0:00:37]} g5 {[%emt 0:01:39]} 38. fxg5 {[%emt 0:00:33]} hxg5 {[%emt 0:00:02]} 39. h4 {[%emt 0:00:30]} gxh4 {[%emt 0:01:08]} 40. Rxh4 {[%emt 0:00:28]} Ra2 {[%emt 0:00:17]} 41. Re4 {[%emt 0:13:48]} Kf6 {[%emt 0:00:55]} 42. g4 {[%emt 0:11:41]} e5 {[%emt 0:08:03]} 43. Rb4 {[%emt 0:01:09]} Kg5 {[%emt 0:02:35]} 44. Rb7 {[%emt 0:01:54]} f6 {[%emt 0:03:28]} ({Don't play} 44... Rxa4 45. Rxf7 Kxg4 46. Kf1 $17) 45. Rg7+ {[%emt 0:01:10]} Kh6 {[%emt 0:02:48]} 46. Ra7 {[%emt 0:01:14]} Rb2 {[%emt 0:02:45]} 47. a5 {[%emt 0:02:46] [#]} Rb4 $1 {[%emt 0:00:40]} 48. a6 {[%emt 0:00:05]} Rxg4+ {[%emt 0:00:16]} 49. Kf2 {[%emt 0:00:24]} Ra4 {[%emt 0:00:16]} 50. Ra8 {[%emt 0:01:00]} Kg5 {[%emt 0:00:24]} 51. Ke3 $2 {[%emt 0:00:32] [#]} (51. a7 $17 Kf4 52. Rf8 Ra2+ 53. Ke1 Rxa7 54. Rxf6+ Ke3 55. Kd1) 51... Kf5 $2 {[%emt 0:00:19]} (51... f5 $1 $19 {and Black stays clearly on top.} 52. Rg8+ Kf6) 52. a7 {[%emt 0:00:42]} Ra3+ {[%emt 0:00:12]} 53. Ke2 {[%emt 0:00:40]} e4 {[%emt 0:07:08]} 54. Kf2 {[%emt 0:00:34]} Kf4 {[%emt 0:04:36]} 55. Ke2 {[%emt 0:00:28]} f5 {[%emt 0:00:32]} 56. Kf2 {[%emt 0:00:22]} Ra2+ {[%emt 0:00:06]} 57. Kg1 $19 {[%emt 0:00:36]} e3 {[%emt 0:00:25]} 58. Kf1 {[%emt 0:00:27]} Kf3 {[%emt 0:00:26]} 59. Kg1 {[%emt 0:00:05]} e2 {[%emt 0:00:28]} 60. Re8 {[%emt 0:00:21]} Rxa7 {[%emt 0:00:09]} 61. Re5 {[%emt 0:00:12]} f4 {[%emt 0:00:25]} 62. Kh2 {[%emt 0:00:13]} Kf2 {[%emt 0:00:12]} 0-1

[Event "22nd Hoogeveen Open 2018"]
[Site "Hoogeveen"]
[Date "2018.10.25"]
[Round "7"]
[White "Hilwerda, Jonas"]
[Black "Hulshof, Peter"]
[Result "1-0"]
[ECO "B15"]
[WhiteElo "2109"]
[BlackElo "2168"]
[Annotator "NA"]
[PlyCount "59"]
[EventDate "2018.10.20"]
[EventType "swiss"]
[EventCountry "NED"]
[SourceTitle "playchess.com"]
[Source "ChessBase"]
[SourceQuality "1"]
[TimeControl "40/5400+30:1800+30"]

1. e4 {[%emt 0:00:00] Yermolinsky,A} g6 {[%emt 0:00:00]} 2. d4 {[%emt 0:00:00]} Bg7 {[%emt 0:00:00]} 3. Nc3 {[%emt 0:00:00]} c6 {[%emt 0:00:04]} 4. f4 {[%emt 0:00:00]} d5 {[%emt 0:00:16]} 5. e5 {[%emt 0:00:00]} Nh6 {[%emt 0:00:16]} 6. Nf3 {[%emt 0:00:28]} f6 {[%emt 0:00:42]} 7. Be3 {[%emt 0:00:48] B15: Caro-Kann: 3 Nc3: 3...g6 and 3...dxe4 4 Nxe4 Nf6 5 Nxf6+ exf6} O-O {[%emt 0:03:40]} 8. h3 {[%emt 0:14:30] LiveBook: 15 Games} b6 {[%emt 0:14:57]} ({Predecessor:} 8... Qb6 $146 9. Qd2 Qxb2 10. Rb1 Qa3 11. g4 Nf7 12. Bd3 fxe5 13. dxe5 Na6 14. Rb3 Qa5 {1-0 (31) Robson,R (2668)-Shabalov,A (2556) Saint Louis 2017 CBM 178 [Yermolinsky,A]}) 9. Qd2 {[%emt 0:00:00]} Nd7 {[%emt 0:03:06]} 10. g4 {[%emt 0:00:00]} fxe5 {[%emt 0:09:51]} 11. dxe5 {[%emt 0:04:52]} Nc5 {[%emt 0:01:19]} 12. Nd4 {[%emt 0:06:05]} Qc7 {[%emt 0:04:20]} 13. Bg2 {[%emt 0:02:22]} e6 {[%emt 0:03:13]} 14. b4 {[%emt 0:15:07]} Nb7 {[%emt 0:04:18]} 15. Nce2 {[%emt 0:17:36]} Nf7 {[%emt 0:07:04]} 16. c4 {[%emt 0:11:27]} dxc4 {[%emt 0:08:42]} 17. Bxc6 {[%emt 0:05:22]} g5 {[%emt 0:01:09]} 18. O-O {[%emt 0:05:33]} gxf4 {[%emt 0:01:11]} 19. Nxf4 {[%emt 0:01:17]} Nxe5 {[%emt 0:00:45]} 20. Be4 {[%emt 0:01:43]} Qe7 {[%emt 0:05:29]} 21. Nh5 {[%emt 0:02:44]} Nf7 {[%emt 0:07:26]} 22. Rf3 {[%emt 0:04:01]} Rb8 {[%emt 0:00:53]} 23. Nc6 {[%emt 0:01:53]} Qc7 {[%emt 0:00:32]} 24. Nxg7 {[%emt 0:00:00]} Kxg7 {[%emt 0:00:16]} 25. Nxb8 {[%emt 0:00:30]} Nbd6 {[%emt 0:00:10]} 26. Bc6 {[%emt 0:02:43]} Qxb8 {[%emt 0:00:32]} 27. Raf1 {[%emt 0:00:34]} Rd8 {[%emt 0:04:31]} 28. Bh6+ {[%emt 0:00:54]} Kg8 {[%emt 0:00:08]} 29. Qg5+ Nxg5 {[%emt 0:00:08]} 30. Rf8+ {[%emt 0:00:49]} 1-0

[Event "22nd Hoogeveen Open 2018"]
[Site "Hoogeveen"]
[Date "2018.10.25"]
[Round "7"]
[White "De Boer, Bas"]
[Black "Kokje, Joris"]
[Result "1/2-1/2"]
[ECO "A87"]
[WhiteElo "2102"]
[BlackElo "2232"]
[Annotator "NA"]
[PlyCount "64"]
[EventDate "2018.10.20"]
[EventType "swiss"]
[EventCountry "NED"]
[SourceTitle "playchess.com"]
[Source "ChessBase"]
[SourceQuality "1"]
[TimeControl "40/5400+30:1800+30"]

{[%evp 20,63,15,3,5,7,12,2,25,0,24,2,110,59,101,0,-25,-20,32767,32767,32767,32767,0,0,20,18,29,32767,32767,32767,32767,32767,106,32767,32767,113,120,32767,128,32767,32767,32767,32767,32767,99,105]} 1. d4 {[%emt 0:00:00]} f5 {[%emt 0:00:00]} 2. g3 {[%emt 0:00:00]} Nf6 {[%emt 0:00:00]} 3. Bg2 {[%emt 0:00:00]} g6 {[%emt 0:00:00]} 4. Nf3 {[%emt 0:00:00]} Bg7 {[%emt 0:00:00]} 5. O-O {[%emt 0:00:00]} d6 {[%emt 0:00:00]} 6. b3 {[%emt 0:00:22]} O-O {[%emt 0:00:24]} 7. Bb2 {[%emt 0:00:08]} c6 {[%emt 0:00:05]} 8. c4 {[%emt 0:01:41]} a5 {[%emt 0:00:22]} 9. Nbd2 {[%emt 0:02:52]} Qc7 {[%emt 0:00:36] A87: Holländische Verteidigung (Leningrader Variante)} 10. Qc2 {[%emt 0:03:57]} Na6 {[%emt 0:02:32]} 11. a3 {[%emt 0:09:25]} Re8 {[%emt 0:02:12]} 12. e4 {[%emt 0:07:06]} fxe4 {[%emt 0:10:25]} 13. Nxe4 {[%emt 0:00:36]} Nxe4 {[%emt 0:00:20]} 14. Qxe4 {[%emt 0:00:07] LiveBook: 4 Games} Bf5 {[%emt 0:01:18]} 15. Qe3 {[%emt 0:01:27] [#]} c5 $146 {[%emt 0:04:36]} ({Vorgänger:} 15... e5 $11 {hält das Gleichgewicht.} 16. dxe5 dxe5 17. Ng5 Bh6 18. h4 {0-1 (55) Georgiev,K (2596)-Cheparinov,I (2693) Kozloduy 2018}) 16. Ng5 {[%emt 0:05:10]} cxd4 {[%emt 0:07:04]} 17. Bd5+ {[%emt 0:16:10]} (17. Bxd4 $16 Bxd4 18. Qxd4) 17... e6 $1 {[%emt 0:03:17]} 18. Nxe6 {[%emt 0:00:36]} Bxe6 {[%emt 0:00:11]} 19. Bxe6+ {[%emt 0:00:10]} Kh8 {[%emt 0:00:18]} 20. Bxd4 {[%emt 0:00:13]} Nc5 {[%emt 0:00:24]} 21. Bxc5 $1 {[%emt 0:01:04]} Bxa1 {[%emt 0:00:40]} 22. Bb6 {[%emt 0:04:12]} ({Reject} 22. Rxa1 dxc5 23. Qc3+ Qg7 $17) 22... Qe7 {[%emt 0:00:55]} 23. Bd5 {[%emt 0:02:37]} Qg7 {[%emt 0:02:44]} 24. Qd3 {[%emt 0:02:22]} Be5 {[%emt 0:04:08]} 25. h4 {[%emt 0:04:40]} Re7 {[%emt 0:05:46]} 26. Kg2 {[%emt 0:00:46]} a4 {[%emt 0:02:41]} 27. b4 {[%emt 0:01:34]} Rf8 {[%emt 0:04:28]} 28. Be3 {[%emt 0:02:15]} Rfe8 {[%emt 0:01:58]} 29. Bg5 {[%emt 0:03:08]} Bf6 {[%emt 0:00:27]} 30. Be3 {[%emt 0:00:08]} Be5 {[%emt 0:01:07]} 31. Bg5 {[%emt 0:00:14]} Bf6 $16 {[%emt 0:02:22]} 32. Bf4 {[%emt 0:00:16]} Be5 {[%emt 0:00:17]} 1/2-1/2

[Event "22nd Hoogeveen Open 2018"]
[Site "Hoogeveen"]
[Date "2018.10.25"]
[Round "7"]
[White "Mijnheer, Peter"]
[Black "Klaren, Duncan"]
[Result "0-1"]
[ECO "B92"]
[WhiteElo "2092"]
[BlackElo "1950"]
[Annotator "NA"]
[PlyCount "102"]
[EventDate "2018.10.20"]
[EventType "swiss"]
[EventCountry "NED"]
[SourceTitle "playchess.com"]
[Source "ChessBase"]
[SourceQuality "1"]
[TimeControl "40/5400+30:1800+30"]

1. e4 {[%emt 0:00:00]} c5 {[%emt 0:00:00]} 2. Nf3 {[%emt 0:00:00]} d6 {[%emt 0:00:00]} 3. d4 {[%emt 0:00:00]} cxd4 {[%emt 0:00:00]} 4. Nxd4 {[%emt 0:00:00]} Nf6 {[%emt 0:00:00]} 5. Nc3 {[%emt 0:00:07]} a6 {[%emt 0:00:00]} 6. Be2 {[%emt 0:00:08]} e5 {[%emt 0:00:00]} 7. Nb3 {[%emt 0:00:08]} Be7 {[%emt 0:00:03]} 8. O-O {[%emt 0:00:09]} O-O {[%emt 0:00:03]} 9. Qd3 {[%emt 0:00:10]} Be6 {[%emt 0:01:02]} 10. Bd2 {[%emt 0:00:08] B92: Sicilian Najdorf: 6 Be2} Nbd7 {[%emt 0:01:29]} 11. Nd5 {[%emt 0:00:10]} Bxd5 {[%emt 0:00:06]} 12. exd5 {[%emt 0:00:12]} Ne8 {[%emt 0:02:56] LiveBook: 6 Games} (12... Nc5 13. Nxc5 dxc5 14. c4 Bd6 15. Qh3 e4 16. f4 exf3 17. Rxf3 Qd7 {½-½ (28) Nepomniachtchi,I (2751)-Karjakin,S (2773) Saint Louis 2017}) 13. Qh3 {[%emt 0:02:33]} Ndf6 $146 {[%emt 0:08:07]} ({Predecessor:} 13... f5 14. Na5 Qc7 15. c4 g6 16. Rac1 Nb8 17. g4 f4 {1-0 (35) Carapinha,F (2310)-Yazgeldiev,K (2318) ICCF email 2013}) 14. c4 {[%emt 0:03:16]} a5 {[%emt 0:03:05]} 15. Rad1 {[%emt 0:38:16]} a4 {[%emt 0:19:14]} 16. Nc1 {[%emt 0:09:44]} Ne4 {[%emt 0:02:58]} 17. Bd3 {[%emt 0:02:37]} N8f6 {[%emt 0:00:16]} 18. Be3 {[%emt 0:00:37]} Qc8 {[%emt 0:01:11]} 19. Qf3 {[%emt 0:04:11]} Nc5 {[%emt 0:00:30]} 20. Bf5 {[%emt 0:00:48]} Qc7 {[%emt 0:01:43]} 21. Qh3 {[%emt 0:05:18]} g6 {[%emt 0:12:47]} 22. Bb1 {[%emt 0:02:25]} Qd7 {[%emt 0:00:38]} 23. Qg3 {[%emt 0:03:17]} Nfe4 {[%emt 0:02:39]} 24. Qf3 {[%emt 0:02:18]} f5 {[%emt 0:00:59]} 25. Qe2 {[%emt 0:16:32]} f4 {[%emt 0:06:15]} 26. Bxc5 {[%emt 0:04:56]} f3 {[%emt 0:00:46]} 27. Qxe4 {[%emt 0:02:38]} Rf4 {[%emt 0:00:08]} 28. Qxf4 {[%emt 0:00:59]} exf4 {[%emt 0:00:05]} 29. Be4 {[%emt 0:00:33]} fxg2 {[%emt 0:00:26]} 30. Bxg2 {[%emt 0:00:14]} dxc5 {[%emt 0:00:05]} 31. Nd3 {[%emt 0:00:50]} Rf8 {[%emt 0:00:17]} 32. f3 {[%emt 0:00:12]} Rf5 {[%emt 0:04:16]} 33. Nf2 {[%emt 0:00:27]} Rf6 {[%emt 0:05:07]} 34. Ne4 {[%emt 0:00:13]} Rb6 {[%emt 0:00:15]} 35. Rd2 {[%emt 0:00:48]} Kg7 {[%emt 0:00:53]} 36. d6 {[%emt 0:00:53]} Bf6 {[%emt 0:02:05]} 37. Nxc5 $19 {[%emt 0:00:21] [#]} (37. Nxf6 $18 {and life is good for White.} Kxf6 {[#]} 38. Bh3 $1 {[%mdl 512]} Rxd6 39. Bxd7 Rxd2 40. Bxa4) 37... Qc6 $1 {[%emt 0:00:41]} 38. Ne4 {[%emt 0:00:12]} Rxb2 {[%emt 0:04:47]} 39. Rxb2 {[%emt 0:00:10]} Bxb2 {[%emt 0:00:04]} 40. Rd1 {[%emt 0:00:11]} Qxc4 {[%emt 0:00:26]} 41. d7 {[%emt 0:30:36]} Bd4+ {[%emt 0:30:15]} 42. Kh1 {[%emt 0:00:13]} Bb6 {[%emt 0:00:03]} 43. Bf1 {[%emt 0:01:53]} Qxa2 {[%emt 0:11:43]} 44. d8=Q {[%emt 0:01:52]} Bxd8 {[%emt 0:00:04]} 45. Rxd8 {[%emt 0:00:08]} Qb1 {[%emt 0:00:07]} 46. Rd7+ {[%emt 0:00:00]} Kh6 {[%emt 0:00:00]} 47. Kg2 {[%emt 0:00:00]} a3 {[%emt 0:00:00]} 48. Bc4 {[%emt 0:00:00]} Qc2+ {[%emt 0:00:00]} 49. Kh3 {[%emt 0:00:00]} Qxc4 {[%emt 0:00:00]} 50. Nf6 {[%emt 0:00:00]} Qe6+ {[%emt 0:00:00]} 51. Ng4+ {[%emt 0:00:00]} Kg5 {[%emt 0:00:00]} 0-1

[Event "22nd Hoogeveen Open 2018"]
[Site "Hoogeveen"]
[Date "2018.10.25"]
[Round "7"]
[White "Jelic, Bruno"]
[Black "Emans, Job"]
[Result "1-0"]
[ECO "E12"]
[WhiteElo "2076"]
[BlackElo "1927"]
[Annotator "NA"]
[PlyCount "103"]
[EventDate "2018.10.20"]
[EventType "swiss"]
[EventCountry "NED"]
[SourceTitle "playchess.com"]
[Source "ChessBase"]
[SourceQuality "1"]
[TimeControl "40/5400+30:1800+30"]

1. d4 {[%emt 0:00:00]} Nf6 {[%emt 0:00:00]} 2. c4 {[%emt 0:00:00]} e6 {[%emt 0:00:00]} 3. Nf3 {[%emt 0:00:27]} b6 {[%emt 0:00:00]} 4. a3 {[%emt 0:00:44]} Bb7 {[%emt 0:00:11]} 5. Nc3 {[%emt 0:00:18]} d5 {[%emt 0:00:13]} 6. cxd5 {[%emt 0:00:31]} Nxd5 {[%emt 0:00:12]} 7. Qc2 {[%emt 0:00:22]} c5 {[%emt 0:03:31] LiveBook: 140 Partien} 8. e4 {[%emt 0:02:05] E12: Queen's Indian: Unusual White 4th moves, 4 a3, 4 Nc3 Bb7 5 a3 and 4 Nc3 Bb7} (8. dxc5 Bxc5 9. Bg5 f6 10. Bd2 O-O 11. e3 Nd7 12. Bd3 f5 13. O-O Nxc3 14. Bxc3 Bxf3 15. gxf3 Qh4 16. Kh1 Be7 17. Bb5 {½-½ (34) Korotylev,A (2573)-Tomashevsky,E (2710) Sochi 2017}) 8... Nf6 {[%emt 0:01:50]} (8... Nxc3 $11 9. bxc3 Nd7) 9. Bb5+ {[%emt 0:10:17]} Nbd7 {[%emt 0:02:18]} 10. dxc5 $146 {[%emt 0:03:52]} ({Predecessor:} 10. d5 exd5 11. e5 Ne4 12. e6 fxe6 13. Nxe4 a6 14. Bxd7+ Qxd7 15. Neg5 Bd6 {½-½ (35) Nielsen,J (2125)-Van den Brink,N (1686) Helsingor 2017}) 10... Bxc5 {[%emt 0:00:49]} 11. Bg5 {[%emt 0:06:22]} a6 {[%emt 0:05:36]} 12. Be2 {[%emt 0:12:03]} Qc7 {[%emt 0:01:43]} 13. Rc1 {[%emt 0:07:40]} Rc8 {[%emt 0:03:12]} 14. O-O {[%emt 0:01:56]} O-O {[%emt 0:01:51]} 15. Bd3 {[%emt 0:03:00]} Ne5 {[%emt 0:03:55]} 16. Qe2 {[%emt 0:05:59]} Nxd3 {[%emt 0:04:12]} 17. Qxd3 {[%emt 0:00:04]} Rfd8 {[%emt 0:00:11]} 18. Qe2 {[%emt 0:02:15]} h6 {[%emt 0:07:40]} 19. Bxf6 {[%emt 0:07:12]} gxf6 {[%emt 0:00:04]} 20. b4 {[%emt 0:01:05]} Bd6 {[%emt 0:04:51]} 21. g3 {[%emt 0:04:00]} Qc4 {[%emt 0:07:10]} 22. Qe3 {[%emt 0:02:04]} Kg7 $2 {[%emt 0:13:44]} (22... Qb3 $15 {stays ahead.} 23. Qxb6 Ba8) 23. Nd5 {[%emt 0:03:44]} Qb5 {[%emt 0:02:25]} 24. Nd4 {[%emt 0:04:06]} Qe8 {[%emt 0:00:09] [#]} 25. Nxb6 {[%emt 0:01:47]} (25. Rxc8 $1 $16 Rxc8 26. Nxb6) 25... Rxc1 {[%emt 0:05:03]} 26. Rxc1 {[%emt 0:00:16]} Be5 {[%emt 0:00:08]} 27. Nf3 {[%emt 0:01:06]} Bb2 {[%emt 0:02:40]} 28. Rb1 {[%emt 0:01:06]} Bxa3 {[%emt 0:12:52]} 29. Nc4 {[%emt 0:00:47]} Qc6 {[%emt 0:04:41]} 30. Nxa3 {[%emt 0:01:39]} ({Keinesfalls} 30. Nfd2 $6 Rxd2 31. Nxd2 Bc1 $16) 30... Qxe4 {[%emt 0:00:06]} 31. Qxe4 {[%emt 0:00:58]} Bxe4 {[%emt 0:00:03]} 32. Rb3 {[%emt 0:00:47]} Rd1+ {[%emt 0:00:11]} 33. Kg2 {[%emt 0:00:11]} Rc1 {[%emt 0:00:23]} 34. g4 {[%emt 0:02:35]} h5 {[%emt 0:03:16]} 35. gxh5 {[%emt 0:00:46]} Kh6 {[%emt 0:01:09]} 36. b5 {[%emt 0:00:52]} axb5 {[%emt 0:00:53]} 37. Nxb5 {[%emt 0:00:18]} Kxh5 {[%emt 0:00:41]} 38. Nc3 {[%emt 0:03:43]} Bd3 {[%emt 0:02:17]} 39. Na2 {[%emt 0:06:25]} Bf1+ {[%emt 0:00:50] [#]} 40. Kg3 $1 {[%emt 0:00:26]} Ra1 {[%emt 0:05:39]} 41. Nc3 {[%emt 0:31:01]} Bd3 {[%emt 0:03:47]} 42. h4 {[%emt 0:00:00]} Rh1 {[%emt 0:04:24]} 43. Rb8 {[%emt 0:00:00]} e5 {[%emt 0:09:48]} 44. Nd5 {[%emt 0:00:00]} Bf1 {[%emt 0:00:19]} 45. Rh8+ {[%emt 0:00:00]} (45. Nxf6+ $142 Kg6 46. Rb6) 45... Kg6 {[%emt 0:00:24]} 46. Rg8+ {[%emt 0:00:00]} Kh6 {[%emt 0:01:04]} 47. Nxf6 {[%emt 0:00:00]} Rh3+ {[%emt 0:03:01]} 48. Kg4 {[%emt 0:00:00]} Rh1 {[%emt 0:05:47]} 49. Ng5 {[%emt 0:00:00]} Bc4 {[%emt 0:01:06]} 50. Kf5 {[%emt 0:00:00]} Re1 {[%emt 0:03:32]} 51. Ng4+ {[%emt 0:00:00]} Kh5 {[%emt 0:00:08]} 52. Rh8# {[%emt 0:00:00]} 1-0